bitfinex/quotes_BTCUSD_20220205
["timestamp","ask_amount","ask_price","bid_price","bid_amount"]
[1644081421677,0.06094,41044.0,41039.0,0.0449]
[1644081422124,0.07225409,41043.0,41039.0,0.0449]
[1644081422624,0.06094052,41041.0,41037.0,0.09600887]
[1644081422824,0.18282352,41041.0,41037.0,0.09600887]
[1644081423024,0.060948,41039.0,41035.0,0.0449]
[1644081423224,0.060946,41038.0,41035.0,0.0449]
[1644081423423,0.07407331,41034.0,41031.0,0.20859632]
[1644081423624,0.060946,41033.0,41032.0,0.339136]
[1644081423825,0.060946,41033.0,41032.0,0.384036]
[1644081424526,0.121892,41033.0,41032.0,0.384036]
[1644081424929,0.19596531,41034.0,41032.0,0.384036]
[1644081425126,0.07407331,41034.0,41032.0,0.384036]
[1644081425425,0.07407331,41034.0,41032.0,0.0449]
[1644081425872,0.05,41033.0,41031.0,0.572732]
[1644081427672,0.05,41033.0,41031.0,0.57026987]
[1644081428073,0.1222112,41034.0,41031.0,0.57026987]
[1644081428276,0.060954,41034.0,41031.0,0.57026987]
[1644081428475,0.06161004,41034.0,41031.0,0.57026987]
[1644081428774,0.04771458,41034.0,41031.0,0.57026987]
[1644081428977,0.04771458,41034.0,41031.0,0.85663587]
[1644081429176,0.05,41040.0,41033.0,0.75]
[1644081429440,0.42964,41049.0,41033.0,0.75]
[1644081429441,0.23382014,41049.0,41035.0,0.2492819]
[1644081429634,0.04193631,41049.0,41038.0,0.05]
[1644081429932,0.04193631,41049.0,41038.0,0.14877086]
[1644081430135,0.04193631,41048.0,41039.0,0.35]
[1644081430334,0.04193631,41048.0,41043.0,0.22618945]
[1644081430534,0.50601266,41051.0,41043.0,0.22618945]
[1644081430535,0.08597191,41050.0,41043.0,0.22618945]
[1644081430931,0.55601266,41051.0,41043.0,0.22618945]
[1644081431134,0.55601266,41051.0,41039.0,0.05]
[1644081431334,0.060933,41047.0,41040.0,0.4]
[1644081431733,0.02477077,41048.0,41042.0,0.35]
[1644081432135,0.02058096,41052.0,41040.0,0.27730496]
[1644081432336,0.12188,41054.0,41046.0,0.26611727]
[1644081432536,0.1828147,41054.0,41051.0,0.02058096]
[1644081432739,0.55314406,41054.0,41051.0,0.02058096]
[1644081432935,0.55314406,41054.0,41045.0,0.05]
[1644081433177,0.55314406,41054.0,41042.0,0.10345559]
[1644081433178,0.060932,41053.0,41043.0,0.05]
[1644081433477,0.060932,41053.0,41046.0,0.25525641]
[1644081433678,0.060932,41053.0,41042.0,0.10345559]
[1644081433878,0.12188,41054.0,41042.0,0.10345559]
[1644081433879,0.121873,41050.0,41042.0,0.10345559]
[1644081434079,0.060939,41050.0,41045.0,0.05]
[1644081434279,0.060937,41049.0,41046.0,0.0449]
[1644081434479,0.00065591,41048.0,41046.0,0.0449]
[1644081434879,0.08149063,41041.0,41034.0,0.32587689]
[1644081435080,0.31878108,41047.0,41032.0,0.1789]
[1644081435081,0.121897,41046.0,41032.0,0.1789]
[1644081435385,0.060949,41045.0,41039.0,0.05]
[1644081435577,0.060949,41045.0,41035.0,0.05]
[1644081435776,0.00065597,41041.0,41035.0,0.05]
[1644081435977,0.00065597,41041.0,41038.0,0.05]
[1644081436379,0.060941,41040.0,41039.0,0.4]
[1644081436579,0.060941,41040.0,41039.0,0.45]
[1644081436927,0.060941,41040.0,41030.0,0.05]
[1644081437324,0.02948065,41040.0,41035.0,0.05]
[1644081437524,0.02948065,41040.0,41031.0,1.58473038]
[1644081437727,0.02948065,41040.0,41031.0,1.47936787]
[1644081437929,0.02948065,41040.0,41034.0,0.20933249]
[1644081438127,0.02948065,41040.0,41031.0,1.47936787]
[1644081438128,0.07449975,41039.0,41031.0,1.47936787]
[1644081438327,0.05,41039.0,41031.0,1.42936787]
[1644081438528,0.05,41039.0,41031.0,1.35079429]
[1644081438729,0.05,41034.0,41031.0,1.35079429]
[1644081438927,0.43069253,41033.0,41031.0,1.35079429]
[1644081439327,0.060954,41033.0,41031.0,1.35079429]
[1644081440329,0.060954,41033.0,41031.0,1.63716029]
[1644081440532,0.060954,41033.0,41031.0,1.63686029]
[1644081441172,0.060954,41033.0,41032.0,0.339136]
[1644081441572,0.060954,41033.0,41032.0,0.334136]
[1644081441972,0.060954,41033.0,41032.0,0.384136]
[1644081442273,0.060942,41036.0,41034.0,0.338836]
[1644081442771,0.060942,41036.0,41031.0,2.21024838]
[1644081442972,0.060942,41036.0,41031.0,2.3044158]
[1644081443176,0.060942,41036.0,41031.0,2.3444158]
[1644081443373,0.060942,41036.0,41031.0,2.60502881]
[1644081443574,0.060942,41036.0,41033.0,0.338849]
[1644081443774,0.060942,41036.0,41031.0,2.52086139]
[1644081443973,0.060942,41036.0,41032.0,0.338849]
[1644081444173,0.060942,41036.0,41033.0,0.1034236]
[1644081444426,0.060942,41036.0,41032.0,0.27104003]
[1644081444723,0.060942,41036.0,41034.0,0.10218597]
[1644081444921,0.060942,41036.0,41035.0,0.4849097]
[1644081445121,0.060942,41036.0,41035.0,0.433749]
[1644081445321,0.060942,41036.0,41035.0,0.483749]
[1644081445827,0.00029325,41039.0,41035.0,0.483749]
[1644081446022,0.00029325,41039.0,41037.0,0.338849]
[1644081446222,0.060938,41041.0,41038.0,0.0449]
[1644081446422,0.060938,41041.0,41039.0,0.338849]
[1644081446621,0.060938,41041.0,41039.0,0.388849]
[1644081446822,0.060938,41041.0,41039.0,0.05]
[1644081447221,0.060938,41041.0,41038.0,0.0449]
[1644081447426,0.121871,41045.0,41038.0,0.0449]
[1644081447622,0.060933,41046.0,41038.0,0.0449]
[1644081447821,0.00065648,41042.0,41038.0,0.0449]
[1644081448281,0.05,41039.0,41031.0,2.21024893]
[1644081448484,0.05,41040.0,41031.0,2.44089398]
[1644081448681,0.05,41037.0,41031.0,2.44023734]
[1644081448880,0.060951,41037.0,41032.0,0.338849]
[1644081449282,0.00065648,41039.0,41032.0,0.338849]
[1644081449681,0.00065648,41039.0,41032.0,0.1439]
[1644081449880,0.3,41045.0,41032.0,0.1439]
[1644081450082,0.00061334,41039.0,41033.0,0.482749]
[1644081450284,0.00061334,41039.0,41035.0,0.1439]
[1644081450483,0.00061334,41039.0,41036.0,0.527649]
[1644081450787,0.00061334,41039.0,41038.0,0.54026025]
[1644081450988,0.00061334,41039.0,41038.0,0.88516025]
[1644081451283,0.5884,41051.0,41038.0,1.17906025]
[1644081451585,0.657272,41059.0,41038.0,1.17906025]
[1644081451586,0.02,41059.0,41042.0,0.1439]
[1644081451783,0.02,41059.0,41044.0,0.482749]
[1644081452029,0.02,41059.0,41055.0,0.338849]
[1644081452228,0.02,41059.0,41056.0,0.0449]
[1644081452429,0.02,41059.0,41057.0,0.338849]
[1644081452626,0.02,41059.0,41057.0,0.388849]
[1644081453027,0.02,41059.0,41057.0,0.338849]
[1644081453230,0.02,41059.0,41052.0,0.1888]
[1644081453430,0.02,41059.0,41044.0,0.7248]
[1644081453431,0.05,41054.0,41044.0,0.8687]
[1644081453633,0.02,41059.0,41045.0,0.338849]
[1644081453828,0.02,41059.0,41045.0,0.1]
[1644081453829,0.05,41054.0,41045.0,0.1]
[1644081454032,0.05,41058.0,41046.0,0.0449]
[1644081454228,0.05,41058.0,41048.0,0.26873879]
[1644081454428,0.02,41059.0,41048.0,0.26873879]
[1644081454629,0.02,41059.0,41048.0,0.31363879]
[1644081454830,0.02,41059.0,41049.0,0.28053935]
[1644081455134,0.060918,41056.0,41050.0,0.383749]
[1644081455332,0.02,41059.0,41050.0,0.727649]
[1644081455531,0.00026298,41062.0,41052.0,0.338849]
[1644081455783,0.00026298,41062.0,41051.0,0.8939]
[1644081455784,0.00026298,41062.0,41056.0,0.338849]
[1644081455985,0.00026298,41068.0,41057.0,0.28813182]
[1644081456190,0.015,41069.0,41058.0,0.338849]
[1644081456384,0.00026298,41068.0,41064.0,0.27693574]
[1644081456585,0.01526298,41069.0,41065.0,0.0449]
[1644081456782,0.01526298,41069.0,41066.0,0.0449]
[1644081456783,0.00026298,41068.0,41066.0,0.0449]
[1644081456984,0.01526298,41069.0,41066.0,0.09797939]
[1644081457184,0.135358,41068.0,41066.0,0.09797939]
[1644081457384,0.46658642,41068.0,41067.0,0.0449]
[1644081457582,0.4668494,41068.0,41067.0,0.0449]
[1644081457785,0.46658642,41068.0,41067.0,0.0449]
[1644081457984,0.085358,41068.0,41067.0,0.0449]
[1644081458586,0.015,41069.0,41067.0,0.0449]
[1644081459084,0.085358,41068.0,41067.0,0.0449]
[1644081459832,0.015,41069.0,41068.0,0.09420231]
[1644081460028,0.015,41069.0,41067.0,0.05]
[1644081460225,0.015,41069.0,41068.0,0.10308038]
[1644081460427,0.01526298,41069.0,41063.0,0.3588813]
[1644081460627,0.015,41069.0,41065.0,0.09904177]
[1644081460827,0.015,41069.0,41066.0,0.1030797]
[1644081461031,0.015,41069.0,41068.0,0.0976135]
[1644081461226,0.100358,41069.0,41068.0,0.05]
[1644081461630,0.015,41069.0,41068.0,0.05]
[1644081461829,0.015,41069.0,41064.0,0.0949]
[1644081462032,0.05,41068.0,41064.0,0.05]
[1644081462228,0.015,41069.0,41063.0,0.15]
[1644081462438,0.01526298,41069.0,41063.0,0.1939]
[1644081462629,0.015,41069.0,41063.0,0.1939]
[1644081463033,0.015,41069.0,41066.0,0.26891557]
[1644081463276,0.015,41069.0,41066.0,0.31891557]
[1644081463477,0.00065871,41068.0,41066.0,0.46281557]
[1644081463677,0.00065871,41068.0,41067.0,0.477749]
[1644081463883,0.00065871,41068.0,41067.0,0.622649]
[1644081464084,0.00189725,41069.0,41067.0,0.622649]
[1644081464277,0.00189725,41069.0,41068.0,1.282749]
[1644081464478,0.00189725,41069.0,41068.0,1.477649]
[1644081464877,0.00189725,41069.0,41068.0,0.583749]
[1644081465078,0.00189725,41069.0,41068.0,0.538849]
[1644081466481,0.05189725,41069.0,41057.0,0.1681]
[1644081466687,0.060899,41070.0,41058.0,0.5]
[1644081466688,0.06116198,41070.0,41058.0,0.5]
[1644081466931,0.04689725,41067.0,41059.0,0.338596]
[1644081467127,0.04689725,41067.0,41058.0,0.5]
[1644081467328,0.04689725,41067.0,41061.0,0.00310275]
[1644081467528,0.04716023,41067.0,41061.0,0.00310275]
[1644081467926,0.00026298,41067.0,41061.0,0.00310275]
[1644081468128,0.04689725,41067.0,41061.0,0.00310275]
[1644081468327,0.00026298,41067.0,41061.0,0.00310275]
[1644081468529,0.28619006,41068.0,41062.0,0.338596]
[1644081468730,0.00026298,41067.0,41064.0,0.338596]
[1644081468927,0.28645304,41068.0,41064.0,0.438596]
[1644081469127,0.00026298,41072.0,41066.0,0.338596]
[1644081469331,0.04689725,41073.0,41068.0,0.27372068]
[1644081469528,0.121788,41076.0,41066.0,0.2]
[1644081469529,0.04573285,41071.0,41066.0,0.2]
[1644081469927,0.04573285,41071.0,41067.0,0.338586]
[1644081470326,0.04573285,41071.0,41067.0,0.1]
[1644081470785,0.04573285,41072.0,41067.0,0.1]
[1644081471184,0.060893,41073.0,41067.0,0.1]
[1644081471383,0.060893,41073.0,41066.0,0.1]
[1644081471586,0.04573285,41070.0,41066.0,0.05]
[1644081471786,0.04573285,41070.0,41065.0,0.15426715]
[1644081471992,0.060896,41070.0,41065.0,0.15426715]
[1644081472285,0.060896,41070.0,41068.0,0.00426715]
[1644081472485,0.060896,41070.0,41068.0,0.15051489]
[1644081472686,0.060896,41070.0,41066.0,0.33034829]
[1644081472887,0.060896,41070.0,41068.0,0.1]
[1644081473086,0.060896,41070.0,41068.0,0.05]
[1644081473287,0.129281,41069.0,41067.0,0.00037471]
[1644081473491,0.060896,41070.0,41067.0,0.00037471]
[1644081473687,0.060896,41070.0,41068.0,0.05]
[1644081473887,0.060896,41070.0,41069.0,0.1056377]
[1644081474087,0.060896,41070.0,41068.0,0.05]
[1644081474287,0.060896,41070.0,41069.0,0.10286639]
[1644081474532,0.060896,41070.0,41068.0,0.05]
[1644081474725,0.060896,41070.0,41069.0,0.09293778]
[1644081474928,0.060896,41070.0,41068.0,0.09955978]
[1644081475127,0.060896,41070.0,41067.0,0.00067294]
[1644081475625,0.060896,41070.0,41068.0,0.05]
[1644081475825,0.060896,41070.0,41067.0,0.00067294]
[1644081476227,0.04573285,41069.0,41068.0,0.05]
[1644081477326,0.04573285,41069.0,41066.0,0.05067294]
[1644081477531,0.04573285,41069.0,41066.0,0.00067294]
[1644081477532,0.31815435,41067.0,41066.0,0.00067294]
[1644081477726,0.04573285,41069.0,41065.0,0.00426715]
[1644081477927,0.060896,41070.0,41065.0,0.09924514]
[1644081478186,0.00064937,41072.0,41066.0,0.09847797]
[1644081478385,0.04638222,41072.0,41067.0,0.05]
[1644081478585,0.04638222,41072.0,41068.0,0.388586]
[1644081478786,0.04638222,41072.0,41068.0,0.538586]
[1644081478988,0.39095916,41075.0,41060.0,0.1449]
[1644081478989,0.04573285,41069.0,41066.0,0.09661088]
[1644081479190,0.060897,41068.0,41067.0,0.00064947]
[1644081479989,0.00026355,41071.0,41067.0,0.00064947]
[1644081480187,0.0459964,41072.0,41063.0,0.1]
[1644081480391,0.00026355,41071.0,41068.0,0.00426715]
[1644081480588,0.00062771,41072.0,41069.0,0.34285315]
[1644081480790,0.00062771,41072.0,41069.0,0.49285315]
[1644081481089,0.00062771,41072.0,41069.0,0.30557674]
[1644081481288,0.00026355,41074.0,41069.0,0.30130959]
[1644081481490,0.00062772,41073.0,41071.0,0.09092914]
[1644081481689,0.00062772,41073.0,41072.0,0.14821988]
[1644081481931,0.00062772,41073.0,41072.0,0.1]
[1644081482127,0.00062772,41073.0,41072.0,0.67633202]
[1644081482332,0.00062772,41073.0,41072.0,0.82633202]
[1644081482628,0.00026355,41076.0,41074.0,0.338586]
[1644081482830,0.00026355,41078.0,41075.0,0.33021269]
[1644081483027,0.02,41079.0,41075.0,0.37594554]
[1644081483227,0.02,41079.0,41076.0,0.05]
[1644081483829,0.02,41079.0,41076.0,0.32561799]
[1644081484027,0.02,41079.0,41077.0,0.00426715]
[1644081484228,0.02,41079.0,41077.0,0.27971655]
[1644081484427,0.02,41079.0,41077.0,0.2754494]
[1644081484630,0.02,41079.0,41069.0,0.0449]
[1644081484829,0.02,41079.0,41070.0,0.42311686]
[1644081485033,0.02026355,41079.0,41077.0,0.24]
[1644081485228,0.01986048,41079.0,41077.0,0.24]
[1644081486077,0.01986048,41079.0,41077.0,0.4618877]
[1644081486277,0.01986048,41079.0,41077.0,0.24]
[1644081486479,0.01986048,41079.0,41077.0,0.44]
[1644081486777,0.01486048,41079.0,41077.0,0.44]
[1644081487377,0.01486048,41079.0,41078.0,0.27507589]
[1644081487582,0.01486048,41079.0,41078.0,0.66366189]
[1644081487779,0.01486048,41079.0,41078.0,0.76366189]
[1644081488177,0.01486048,41079.0,41078.0,0.76792904]
[1644081488380,0.0147399,41079.0,41078.0,0.76366189]
[1644081490430,0.0147399,41079.0,41078.0,1.05714115]
[1644081491228,0.00063417,41081.0,41078.0,1.05714115]
[1644081491436,0.0025363,41087.0,41080.0,0.8939]
[1644081491632,0.124,41091.0,41087.0,0.75]
[1644081491830,0.0742641,41091.0,41089.0,0.75]
[1644081492029,0.0742641,41091.0,41090.0,0.38775315]
[1644081492328,0.0742641,41091.0,41090.0,1.07939487]
[1644081492329,0.074,41091.0,41090.0,1.07939487]
[1644081492530,0.0002641,41094.0,41092.0,0.338586]
[1644081492735,0.06181576,41099.0,41094.0,0.338586]
[1644081492930,0.01972394,41099.0,41098.0,0.27608416]
[1644081493178,0.01972394,41099.0,41098.0,0.75269016]
[1644081493378,0.01972394,41099.0,41098.0,0.95269016]
[1644081493581,0.01972394,41099.0,41098.0,0.676606]
[1644081493780,0.06181576,41099.0,41098.0,0.576606]
[1644081493981,0.06181576,41099.0,41098.0,0.526606]
[1644081494180,0.06181576,41099.0,41098.0,0.0949]
[1644081494379,0.06181576,41099.0,41098.0,0.05]
[1644081494581,0.06181576,41099.0,41096.0,0.0449]
[1644081494782,0.055856,41098.0,41096.0,0.0449]
[1644081494981,0.129281,41097.0,41084.0,0.3]
[1644081495181,0.08058594,41099.0,41085.0,0.383486]
[1644081495383,0.04209182,41095.0,41085.0,0.383486]
[1644081495581,0.08058594,41099.0,41085.0,0.383486]
[1644081495582,0.04209182,41090.0,41085.0,0.383486]
[1644081495879,0.20230694,41099.0,41085.0,0.383486]
[1644081495880,0.2389498,41098.0,41085.0,0.383486]
[1644081496080,0.00067325,41090.0,41085.0,0.38415933]
[1644081496279,0.00067325,41090.0,41085.0,0.53925933]
[1644081496479,0.00067325,41090.0,41087.0,0.338586]
[1644081496682,0.00067325,41090.0,41089.0,0.00790818]
[1644081496936,0.00067325,41090.0,41089.0,0.69139418]
[1644081497131,0.01972394,41099.0,41089.0,0.49139418]
[1644081497332,0.02241636,41099.0,41092.0,0.00790818]
[1644081497534,0.02241636,41099.0,41094.0,0.27607748]
[1644081497732,0.02241636,41099.0,41094.0,0.37607748]
[1644081497934,0.03709182,41096.0,41095.0,0.35149418]
[1644081498130,0.01741636,41099.0,41095.0,0.68639418]
[1644081498334,0.5492,41110.0,41099.0,0.338586]
[1644081498335,0.05,41110.0,41099.0,0.338586]
[1644081498531,0.02,41109.0,41105.0,0.22087747]
[1644081498732,0.02,41109.0,41108.0,0.01290818]
[1644081498931,0.5608,41119.0,41109.0,0.65]
[1644081498932,0.5558,41119.0,41109.0,0.65]
[1644081499131,0.5558,41119.0,41110.0,0.0449]
[1644081499334,0.03709182,41111.0,41110.0,0.0449]
[1644081499533,0.03709182,41113.0,41110.0,0.383252]
[1644081499833,0.060828,41117.0,41110.0,0.0949]
[1644081499834,0.06108613,41117.0,41110.0,0.0949]
[1644081500037,0.06108613,41117.0,41111.0,0.31290818]
[1644081500232,0.06108613,41117.0,41114.0,0.01290818]
[1644081500233,0.00025813,41117.0,41114.0,0.01290818]
[1644081500434,0.00025813,41117.0,41113.0,0.03159]
[1644081500435,0.00025813,41117.0,41115.0,0.0449]
[1644081500686,0.015,41119.0,41112.0,0.05]
[1644081500881,0.00025813,41118.0,41117.0,0.23137499]
[1644081501082,0.00025813,41118.0,41117.0,0.338352]
[1644081501386,0.00025813,41118.0,41117.0,0.483252]
[1644081501586,0.01025813,41119.0,41118.0,0.25]
[1644081501782,0.01025813,41119.0,41118.0,0.338352]
[1644081501783,0.06025813,41119.0,41118.0,0.338352]
[1644081501982,0.06025813,41119.0,41111.0,0.1949]
[1644081501983,0.36610171,41119.0,41111.0,0.1949]
[1644081502186,0.05,41118.0,41111.0,0.1449]
[1644081502383,0.05,41118.0,41112.0,0.09092324]
[1644081502683,0.05,41118.0,41111.0,0.1449]
[1644081502880,0.05,41118.0,41111.0,0.0449]
[1644081503386,0.05,41113.0,41112.0,0.338352]
[1644081503584,0.04070813,41119.0,41112.0,0.43815668]
[1644081503883,0.04070813,41119.0,41115.0,0.338251]
[1644081503884,0.03045,41118.0,41115.0,0.338251]
[1644081504083,0.03045,41118.0,41116.0,0.05]
[1644081504530,0.03045,41118.0,41117.0,0.338251]
[1644081505031,0.03045,41118.0,41117.0,0.388251]
[1644081505430,0.03045,41118.0,41117.0,0.05]
[1644081505629,0.03045,41118.0,41117.0,0.338251]
[1644081506134,0.03045,41118.0,41117.0,0.1]
[1644081506330,0.02545,41118.0,41117.0,0.05]
[1644081506532,0.00067566,41120.0,41119.0,0.09237021]
[1644081506732,0.02545,41124.0,41119.0,0.91942121]
[1644081506930,0.02545,41124.0,41123.0,0.02455]
[1644081507130,0.00026458,41128.0,41123.0,0.02455]
[1644081507131,0.02545,41125.0,41123.0,0.383151]
[1644081507331,0.02545,41125.0,41123.0,0.533151]
[1644081507731,0.02545,41125.0,41124.0,0.338251]
[1644081507931,0.49848685,41131.0,41125.0,0.103157]
[1644081508185,0.49848685,41131.0,41126.0,0.12438674]
[1644081508186,0.02545,41129.0,41126.0,0.12438674]
[1644081508382,0.02545,41129.0,41127.0,0.20157559]
[1644081508582,0.02545,41129.0,41127.0,0.1]
[1644081508789,0.02545,41129.0,41125.0,0.2]
[1644081508983,0.02545,41129.0,41127.0,0.338251]
[1644081509185,0.02545,41129.0,41127.0,0.48333531]
[1644081509384,0.02545,41129.0,41128.0,0.57381321]
[1644081509583,0.02545,41129.0,41128.0,0.338251]
[1644081509786,0.02545,41129.0,41118.0,0.09494855]
[1644081509985,0.49383327,41139.0,41114.0,0.10537273]
[1644081509986,0.02545,41119.0,41114.0,0.10537273]
[1644081510188,0.1,41132.0,41115.0,0.4293363]
[1644081510386,0.02545,41124.0,41117.0,0.338251]
[1644081510585,0.147091,41124.0,41117.0,0.57834457]
[1644081510886,0.37050582,41122.0,41115.0,0.09183317]
[1644081511085,0.14735559,41124.0,41117.0,0.09925517]
[1644081511294,0.00026459,41123.0,41118.0,0.338251]
[1644081511586,0.00026459,41126.0,41119.0,0.09225293]
[1644081511786,0.02545,41124.0,41120.0,0.338251]
[1644081512039,0.02545,41126.0,41120.0,0.362801]
[1644081512441,0.39080776,41127.0,41120.0,0.338251]
[1644081512641,0.02545,41121.0,41119.0,0.34]
[1644081512841,0.02545,41121.0,41119.0,0.24]
[1644081513041,0.0487,41120.0,41119.0,0.24]
[1644081513340,0.188228,41120.0,41119.0,0.24]
[1644081513540,0.52917801,41120.0,41119.0,0.24]
[1644081514141,0.48047801,41120.0,41119.0,0.24]
[1644081514941,0.48047801,41120.0,41119.0,0.29]
[1644081515143,0.00026459,41123.0,41119.0,0.61455]
[1644081515342,0.00026459,41124.0,41121.0,0.09142776]
[1644081515544,0.02545,41131.0,41123.0,0.4]
[1644081515781,0.02545,41130.0,41124.0,0.438251]
[1644081515983,0.02545,41130.0,41126.0,0.26433067]
[1644081516184,0.02545,41130.0,41127.0,0.338251]
[1644081516484,0.02545,41130.0,41127.0,0.25302351]
[1644081516679,0.02545,41130.0,41128.0,0.338251]
[1644081516680,0.02612483,41130.0,41128.0,0.338251]
[1644081516880,0.02612483,41130.0,41128.0,0.05]
[1644081517381,0.02612483,41130.0,41127.0,0.1]
[1644081517581,0.02545,41130.0,41127.0,0.05]
[1644081517780,0.02545,41130.0,41126.0,0.5671001]
[1644081517980,0.02545,41130.0,41128.0,0.02455]
[1644081518183,0.02545,41130.0,41126.0,0.46433067]
[1644081518381,0.02545,41130.0,41128.0,0.02455]
[1644081518583,0.02545,41130.0,41129.0,0.338251]
[1644081518783,0.02545,41130.0,41129.0,0.388251]
[1644081518990,0.02545,41130.0,41129.0,0.05]
[1644081519181,0.02545,41130.0,41128.0,0.07455]
[1644081519439,0.02545,41130.0,41128.0,0.12455]
[1644081519638,0.02545,41130.0,41129.0,0.27458344]
[1644081519835,0.02545,41130.0,41128.0,0.07455]
[1644081520036,0.02545,41130.0,41129.0,0.05]
[1644081520435,0.01545,41130.0,41129.0,0.388251]
[1644081521037,0.01545,41130.0,41129.0,0.05]
[1644081521239,0.01545,41130.0,41129.0,0.1]
[1644081521436,0.01545,41130.0,41129.0,0.05]
[1644081521836,0.91958837,41137.0,41125.0,0.89907959]
[1644081522036,0.91958837,41137.0,41125.0,0.85]
[1644081522236,0.91958837,41137.0,41125.0,0.30178344]
[1644081522439,0.060799,41136.0,41131.0,0.05]
[1644081522638,0.5821,41137.0,41132.0,0.0487]
[1644081522840,0.139528,41136.0,41132.0,0.0487]
[1644081523038,0.02,41139.0,41132.0,0.0487]
[1644081523679,0.139528,41138.0,41132.0,0.04719254]
[1644081523880,0.139528,41138.0,41133.0,0.3]
[1644081524087,0.141605,41139.0,41133.0,0.3]
[1644081524088,0.02,41139.0,41133.0,0.3]
[1644081524285,0.02,41139.0,41133.0,0.3487]
[1644081524479,0.01893,41139.0,41134.0,0.338108]
[1644081524678,0.01893,41139.0,41133.0,0.0487]
[1644081524880,0.01893,41139.0,41137.0,0.27634532]
[1644081525079,0.10816572,41139.0,41133.0,0.0987]
[1644081525380,0.01922531,41139.0,41133.0,0.0987]
[1644081525980,0.01922531,41139.0,41137.0,0.22305968]
[1644081526180,0.01893,41139.0,41137.0,0.22305968]
[1644081526382,0.00029531,41138.0,41137.0,0.32305968]
[1644081526786,0.00029531,41138.0,41137.0,0.2]
[1644081527039,0.00029531,41138.0,41133.0,0.0987]
[1644081527337,0.06760659,41134.0,41122.0,0.05]
[1644081527535,0.06760659,41134.0,41119.0,0.3]
[1644081527731,0.1972094,41135.0,41126.0,0.27643014]
[1644081527933,0.33429735,41134.0,41118.0,0.0122]
[1644081528135,0.33429735,41134.0,41126.0,0.05]
[1644081528733,0.33497444,41134.0,41127.0,0.00067721]
[1644081529438,0.45685459,41134.0,41127.0,0.00067721]
[1644081529732,0.45685459,41134.0,41125.0,0.51944998]
[1644081529733,0.4561775,41134.0,41130.0,0.05]
[1644081529934,0.12955,41133.0,41130.0,0.05]
[1644081530334,0.12955,41133.0,41127.0,0.00067721]
[1644081530335,0.060807,41132.0,41127.0,0.00067721]
[1644081530536,0.08291391,41128.0,41127.0,0.00067721]
[1644081530780,0.12955,41126.0,41125.0,0.23567721]
[1644081530981,0.121639,41127.0,41125.0,0.23567721]
[1644081531480,0.29600279,41126.0,41125.0,0.23567721]
[1644081531679,0.48637279,41126.0,41125.0,0.23567721]
[1644081532781,0.48637279,41126.0,41125.0,0.22759153]
[1644081533079,0.48637279,41126.0,41125.0,0.22708582]
[1644081533479,0.48637279,41126.0,41125.0,0.27708582]
[1644081533680,0.48637279,41126.0,41125.0,0.32708582]
[1644081533880,0.48637279,41126.0,41125.0,0.25653885]
[1644081533881,0.06082,41126.0,41125.0,0.25653885]
[1644081534281,0.06082,41126.0,41125.0,0.21557457]
[1644081534930,0.46141591,41126.0,41125.0,0.23484117]
[1644081535129,0.40059591,41126.0,41125.0,0.23484117]
[1644081535331,0.40059591,41126.0,41125.0,0.18484117]
[1644081535630,0.00026515,41129.0,41125.0,0.22486617]
[1644081535830,0.060809,41130.0,41127.0,0.338108]
[1644081536030,0.06107415,41130.0,41125.0,0.27486617]
[1644081536230,0.060809,41130.0,41125.0,0.32486617]
[1644081536631,0.38268846,41128.0,41125.0,0.27486617]
[1644081537631,0.38268846,41128.0,41125.0,0.32486617]
[1644081538032,0.06107415,41130.0,41127.0,0.338108]
[1644081538291,0.00026515,41131.0,41127.0,0.438108]
[1644081538491,0.00089939,41132.0,41127.0,0.1]
[1644081538691,0.00063424,41132.0,41127.0,0.05]
[1644081538890,0.00063424,41132.0,41128.0,0.05]
[1644081539090,0.00063424,41132.0,41129.0,0.338108]
[1644081539290,0.060807,41131.0,41129.0,0.05]
[1644081539591,0.190357,41131.0,41129.0,0.05]
[1644081539793,0.060807,41131.0,41128.0,0.05]
[1644081539989,0.060807,41131.0,41128.0,0.045]
[1644081540189,0.060807,41131.0,41126.0,0.05]
[1644081540391,0.060807,41131.0,41129.0,0.045]
[1644081542233,0.060807,41131.0,41126.0,0.15]
[1644081542438,0.060807,41131.0,41130.0,0.045]
[1644081542731,0.060807,41131.0,41127.0,0.045]
[1644081543333,0.060807,41131.0,41126.0,0.05]
[1644081543832,0.060807,41131.0,41130.0,0.045]
[1644081544233,0.15258674,41131.0,41125.0,0.18484117]
[1644081544434,0.005,41126.0,41125.0,0.18547824]
[1644081544634,0.065818,41126.0,41125.0,0.18547824]
[1644081544832,0.195368,41126.0,41125.0,0.18547824]
[1644081545037,0.190368,41126.0,41125.0,0.18547824]
[1644081545233,0.58759748,41126.0,41125.0,0.18547824]
[1644081545433,0.59259748,41126.0,41125.0,0.18484117]
[1644081545879,0.59259748,41126.0,41125.0,0.23484117]
[1644081547081,0.53177948,41126.0,41125.0,0.23484117]
[1644081547686,0.52677948,41126.0,41125.0,0.23484117]
[1644081548484,0.53177948,41126.0,41125.0,0.23484117]
[1644081548887,0.52677948,41126.0,41125.0,0.23484117]
[1644081549438,0.53177948,41126.0,41125.0,0.23484117]
[1644081549634,0.52677948,41126.0,41125.0,0.23484117]
[1644081549832,0.53177948,41126.0,41125.0,0.23484117]
[1644081550242,0.52677948,41126.0,41125.0,0.23484117]
[1644081550834,0.53177948,41126.0,41125.0,0.23484117]
[1644081551035,0.52677948,41126.0,41125.0,0.23484117]
[1644081551237,0.53177948,41126.0,41125.0,0.23484117]
[1644081552136,0.76250119,41126.0,41125.0,0.18484117]
[1644081552338,0.07554012,41119.0,41118.0,0.0122]
[1644081552739,0.005,41120.0,41118.0,0.0022]
[1644081553186,0.00026515,41123.0,41119.0,0.045]
[1644081553386,0.06082,41124.0,41118.0,0.0022]
[1644081553387,0.00026515,41124.0,41118.0,0.0022]